bitfinex/quotes_SOLUSD_20250123
["timestamp","ask_amount","ask_price","bid_price","bid_amount"]
[1737596760053,19.55559746,254.01,254.0,14.851735]
[1737596760265,35.83248146,254.01,254.0,14.851735]
[1737596760462,12.05559746,254.01,254.0,14.851735]
[1737596764558,12.05559746,254.01,254.0,12.211735]
[1737596764947,12.05559746,254.01,254.0,9.571735]
[1737596766153,35.83248146,254.01,254.0,8.37239297]
[1737596766551,12.05559746,254.01,254.0,8.37239297]
[1737596768263,12.05559746,254.03,254.0,8.37239297]
[1737596769972,12.05559746,254.05,254.0,8.37239297]
[1737596770572,3.9363,254.04,254.0,8.37239297]
[1737596770771,12.05559746,254.03,254.0,8.37239297]
[1737596771477,12.05559746,254.05,254.0,8.37239297]
[1737596771771,6.5013,254.14,254.0,8.37239297]
[1737596771772,12.05559746,254.07,254.0,8.37239297]
[1737596771951,3.9349,254.13,254.0,12.30929297]
[1737596771952,12.05559746,254.09,254.0,12.30929297]
[1737596772754,12.05559746,254.09,254.01,12.05559746]
[1737596772961,12.05559746,254.11,254.01,12.05559746]
[1737596773179,12.05559746,254.11,254.01,324.05559746]
[1737596773376,12.05559746,254.11,254.03,30.0]
[1737596773579,12.05559746,254.11,254.03,42.05559746]
[1737596775390,12.05559746,254.13,254.04,8.2163]
[1737596776080,12.05559746,254.05,254.0,12.65239297]
[1737596776278,12.05559746,254.03,254.0,12.65239297]
[1737596776868,12.05559746,254.03,254.0,8.37239297]
[1737596777376,12.05559746,254.01,254.0,8.37239297]
[1737596779171,15.99219746,254.02,254.0,8.37239297]
[1737596780384,16.05519746,254.02,254.0,8.37239297]
[1737596782277,24.42759046,254.02,254.0,8.37239297]
[1737596784491,16.05519746,254.02,254.0,8.37239297]
[1737596786387,23.776884,254.01,253.96,1.83209647]
[1737596786591,12.05559746,253.97,253.96,1.83209647]
[1737596786997,12.05559746,253.87,253.81,6.6365]
[1737596787586,12.05559746,253.87,253.79,20.10175913]
[1737596787795,12.05559746,253.81,253.79,8.04616167]
[1737596787986,12.05559746,253.81,253.65,3.9424]
[1737596788276,12.05559746,253.82,253.73,42.05559746]
[1737596788514,12.05559746,253.8,253.71,12.05559746]
[1737596788686,12.05559746,253.8,253.74,0.03]
[1737596789284,12.05559746,253.76,253.65,30.0]
[1737596789487,12.05559746,253.76,253.69,30.0]
[1737596789692,12.05559746,253.76,253.65,42.05559746]
[1737596790080,12.05559746,253.78,253.69,30.0]
[1737596790286,12.05559746,253.76,253.65,16.37559746]
[1737596790592,12.05559746,253.8,253.72,30.0]
[1737596790799,12.05559746,253.8,253.69,20.34049746]
[1737596790999,12.05559746,253.78,253.7,30.0]
[1737596791604,12.05559746,253.78,253.7,8.2616]
[1737596791790,12.05559746,253.76,253.69,8.2849]
[1737596792195,12.05559746,253.76,253.69,12.2265]
[1737596792378,12.05559746,253.76,253.71,0.03]
[1737596792983,12.05559746,253.73,253.71,0.03]
[1737596797680,12.05559746,253.69,253.64,1.29]
[1737596798013,12.05559746,253.65,253.59,3.9433]
[1737596798217,3.9428,253.73,253.59,3.9433]
[1737596798218,12.05559746,253.63,253.59,3.9433]
[1737596798384,12.05559746,253.63,253.59,33.9433]
[1737596798575,12.05559746,253.65,253.59,3.9433]
[1737596799087,12.05559746,253.65,253.58,4.36]
[1737596799305,12.05559746,253.63,253.58,4.36]
[1737596799897,12.05559746,253.65,253.58,346.36]
[1737596800082,12.05559746,253.67,253.58,350.3033]
[1737596801012,12.05559746,253.67,253.61,30.0]
[1737596801302,12.05559746,253.65,253.55,12.05559746]
[1737596801500,12.05559746,253.65,253.56,1.3]
[1737596802402,12.05559746,253.65,253.57,12.05559746]
[1737596802698,12.05559746,253.67,253.58,33.9435]
[1737596802901,12.05559746,253.67,253.61,30.0]
[1737596803280,12.05559746,253.67,253.58,33.9435]
[1737596803609,12.05559746,253.65,253.58,33.9435]
[1737596804100,12.05559746,253.65,253.58,3.9435]
[1737596804296,12.05559746,253.65,253.58,315.9435]
[1737596804496,12.05559746,253.63,253.56,3.9437]
[1737596804797,12.05559746,253.63,253.58,0.03]
[1737596805003,12.05559746,253.61,253.58,0.03]
[1737596806691,12.05559746,253.63,253.58,0.03]
[1737596806899,12.05559746,253.61,253.58,0.03]
[1737596809201,9.8541,253.7,253.58,0.03]
[1737596809202,12.05559746,253.59,253.58,0.03]
[1737596811020,12.05559746,253.63,253.58,0.03]
[1737596811801,12.05559746,253.63,253.53,43.8049]
[1737596811802,6.3011,253.69,253.53,43.8049]
[1737596812106,12.05559746,253.6,253.55,3.9439]
[1737596812805,12.05559746,253.58,253.51,1.5132]
[1737596812987,12.05559746,253.58,253.52,30.0]
[1737596813405,12.05559746,253.58,253.49,3.9447]
[1737596813601,12.05559746,253.56,253.49,3.9447]
[1737596813804,12.05559746,253.56,253.48,16.00059746]
[1737596814001,12.05559746,253.56,253.49,33.9449]
[1737596814395,12.05559746,253.56,253.45,30.0]
[1737596814396,12.05559746,253.54,253.47,3.9451]
[1737596815210,12.05559746,253.5,253.43,8.5657]
[1737596815711,12.05559746,253.5,253.43,3.9457]
[1737596815908,12.05559746,253.46,253.39,4.64]
[1737596816108,12.05559746,253.42,253.4,30.0]
[1737596817291,12.05559746,253.42,253.28,12.05559746]
[1737596817500,12.05559746,253.36,253.31,30.0]
[1737596817705,12.05559746,253.41,253.32,12.05559746]
[1737596818194,12.05559746,253.41,253.26,5.0]
[1737596818195,12.05559746,253.33,253.21,42.05559746]
[1737596818414,18.43609746,253.37,253.21,42.05559746]
[1737596818415,12.05559746,253.31,253.21,42.05559746]
[1737596818594,12.05559746,253.33,253.25,30.0]
[1737596818797,12.05559746,253.33,253.23,324.05559746]
[1737596819001,12.05559746,253.33,253.23,12.05559746]
[1737596819197,3.9463,253.4,253.2,3.9494]
[1737596819198,12.05559746,253.31,253.21,12.05559746]
[1737596819410,12.05559746,253.29,253.19,12.05559746]
[1737596819716,12.05559746,253.27,253.17,42.05559746]
[1737596819917,12.05559746,253.29,253.19,12.05559746]
[1737596820216,12.05559746,253.27,253.17,12.05559746]
[1737596820404,12.05559746,253.25,253.17,3.9499]
[1737596820611,12.05559746,253.29,253.19,12.05559746]
[1737596820801,12.05559746,253.31,253.23,30.0]
[1737596821196,12.05559746,253.31,253.21,12.05559746]
[1737596821895,19.44885921,253.3,253.2,49.44885921]
[1737596822099,19.44885921,253.32,253.23,30.0]
[1737596822300,7.5,253.48,253.23,30.0]
[1737596822301,19.44885921,253.36,253.27,30.0]
[1737596822818,19.44885921,253.34,253.22,56.94885921]
[1737596822996,19.44885921,253.32,253.22,49.44885921]
[1737596823200,19.44885921,253.32,253.26,30.0]
[1737596824017,19.44885921,253.32,253.23,3.9489]
[1737596824395,5.0,253.41,253.2,20.93491129]
[1737596824621,19.44885921,253.32,253.22,19.44885921]
[1737596825203,19.44885921,253.34,253.26,30.0]
[1737596825425,16.2454,253.43,253.29,30.0]
[1737596825426,19.44885921,253.38,253.29,30.0]
[1737596825626,19.44885921,253.42,253.33,30.0]
[1737596826117,19.44885921,253.42,253.34,3.9472]
[1737596826317,19.44885921,253.42,253.32,19.44885921]
[1737596826615,19.44885921,253.33,253.16,1.5693]
[1737596826829,19.44885921,253.25,253.16,5.5193]
[1737596827207,19.44885921,253.23,253.16,1.5693]
[1737596827416,19.44885921,253.23,253.14,33.9503]
[1737596827903,19.44885921,253.25,253.17,30.0]
[1737596828106,19.44885921,253.25,253.17,33.9497]
[1737596828632,1.5454,253.35,253.18,19.44885921]
[1737596828633,19.44885921,253.29,253.18,19.44885921]
[1737596828925,19.44885921,253.29,253.22,30.0]
[1737596829605,19.44885921,253.31,253.26,30.0]
[1737596829806,19.44885921,253.37,253.29,30.0]
[1737596830221,19.44885921,253.37,253.3,3.9478]
[1737596831026,19.44885921,253.34,253.3,3.9478]
[1737596831426,19.44885921,253.36,253.3,3.9478]
[1737596831928,19.44885921,253.33,253.27,30.0]
[1737596832303,19.44885921,253.33,253.25,3.9486]
[1737596832816,19.44885921,253.35,253.29,30.0]
[1737596833020,19.44885921,253.35,253.26,30.0]
[1737596833236,19.44885921,253.35,253.29,30.0]
[1737596834431,19.44885921,253.35,253.29,33.948]
[1737596834719,15.847667,253.42,253.16,33.9499]
[1737596834720,19.44885921,253.31,253.16,33.9499]
[1737596834908,19.44885921,253.22,253.16,19.34]
[1737596835726,19.44885921,253.24,253.17,3.9499]
[1737596835899,19.44885921,253.24,253.17,33.9499]
[1737596836219,19.44885921,253.26,253.17,33.9499]
[1737596836919,19.44885921,253.26,253.2,30.0]
[1737596837125,19.44885921,253.3,253.23,30.0]
[1737596837327,19.44885921,253.32,253.23,30.0]
[1737596838215,19.44885921,253.3,253.22,19.44885921]
[1737596838532,19.44885921,253.3,253.22,3.9489]
[1737596838716,19.44885921,253.26,253.2,3.9493]
[1737596839414,19.44885921,253.26,253.2,33.9493]
[1737596839708,19.44885921,253.26,253.2,3.9493]
[1737596839909,19.44885921,253.26,253.18,19.44885921]
[1737596841214,19.44885921,253.24,253.17,3.9498]
[1737596841434,19.44885921,253.24,253.16,23.2899]
[1737596841639,19.44885921,253.24,253.19,30.0]
[1737596841933,19.44885921,253.26,253.2,3.9494]
[1737596842136,19.44885921,253.28,253.22,30.0]
[1737596842340,19.44885921,253.3,253.22,30.0]
[1737596843327,19.44885921,253.3,253.25,30.0]
[1737596843512,19.44885921,253.32,253.25,30.0]
[1737596844026,19.44885921,253.26,253.17,0.03]
[1737596844234,19.44885921,253.24,253.15,19.44885921]
[1737596844433,19.44885921,253.24,253.17,30.0]
[1737596844944,19.44885921,253.24,253.17,33.9498]
[1737596846131,19.44885921,253.22,253.12,11.4459]
[1737596846340,19.44885921,253.22,253.15,3.9502]
[1737596846643,19.44885921,253.22,253.17,3.9499]
[1737596847541,19.44885921,253.24,253.09,30.0]
[1737596847740,19.44885921,253.18,253.09,3.951]
[1737596848427,19.44885921,253.18,253.07,3.9513]
[1737596848741,19.44885921,253.18,253.04,24.92885921]
[1737596848742,19.44885921,253.18,253.04,19.44885921]
[1737596849042,3.9499,253.17,253.04,23.40065921]
[1737596849220,19.44885921,253.11,253.03,30.0]
[1737596850023,19.44885921,253.11,253.03,33.952]
[1737596850520,19.44885921,253.11,253.07,312.0]
[1737596850733,19.44885921,253.15,253.07,30.0]
[1737596851244,19.44885921,253.19,253.1,49.44885921]
[1737596851627,19.44885921,253.17,253.1,49.44885921]
[1737596851840,19.44885921,253.19,253.14,312.0]
[1737596852143,19.44885921,253.16,253.14,312.0]
[1737596853665,19.44885921,253.18,253.14,312.0]
[1737596855220,19.44885921,253.18,253.11,3.9508]
[1737596855428,19.44885921,253.2,253.13,30.0]
[1737596855728,19.44885921,253.2,253.13,30.03]
[1737596855932,19.44885921,253.2,253.13,33.9804]
[1737596856645,19.44885921,253.22,253.14,19.44885921]
[1737596857025,19.44885921,253.2,253.13,33.9504]
[1737596857233,19.44885921,253.18,253.1,19.44885921]
[1737596857559,19.44885921,253.18,253.08,23.40005921]
[1737596857758,19.44885921,253.16,253.08,19.44885921]
[1737596857941,19.44885921,253.16,253.06,19.44885921]
[1737596858140,19.44885921,253.14,253.06,19.44885921]
[1737596858342,19.44885921,253.14,253.08,312.0]
[1737596860159,23.39925921,253.14,253.08,312.0]
[1737596860862,19.44885921,253.18,253.1,19.44885921]
[1737596862071,19.44885921,253.14,253.06,19.44885921]
[1737596862246,19.44885921,253.14,253.06,23.40045921]
[1737596862557,19.44885921,253.14,253.06,3.9516]
[1737596862950,19.44885921,253.14,253.06,23.40045921]
[1737596863250,19.44885921,253.16,253.06,23.40045921]
[1737596863434,19.44885921,253.18,253.08,49.44885921]
[1737596864056,19.44885921,253.23,253.14,19.44885921]
[1737596864737,8.04491857,253.28,253.08,19.44885921]
[1737596864738,19.44885921,253.17,253.08,19.44885921]
[1737596865354,23.39875921,253.17,253.08,19.44885921]
[1737596866053,19.44885921,253.15,253.06,19.44885921]
[1737596867258,23.39915921,253.15,253.06,19.44885921]
[1737596867457,23.39915921,253.15,253.08,312.0]
[1737596867664,19.44885921,253.13,253.08,312.0]
[1737596867838,19.44885921,253.13,253.05,1.5062]
[1737596868245,19.44885921,253.13,253.07,0.03]
[1737596869163,19.44885921,253.13,253.05,1.5062]
[1737596869758,23.39945921,253.13,253.05,1.5062]
[1737596870843,23.39945921,253.13,253.07,312.0]
[1737596872547,19.44885921,253.11,253.07,312.0]
[1737596872738,19.44885921,253.11,253.02,49.44885921]
[1737596872941,19.44885921,253.11,253.02,53.40095921]
[1737596873166,19.44885921,253.11,253.05,30.0]
[1737596873361,19.44885921,253.13,253.05,30.0]
[1737596873749,12.17133947,253.11,253.02,46.12343947]
[1737596874368,16.12213947,253.11,253.02,46.12343947]
[1737596874866,12.17133947,253.11,253.02,46.12343947]
[1737596875064,12.17133947,253.11,253.02,33.9521]
[1737596875747,12.17133947,253.11,253.05,312.0]
[1737596876345,3.9505,253.13,253.05,312.0]
[1737596876549,12.17133947,253.09,253.03,3.9519]
[1737596876944,12.17133947,253.09,253.02,33.9522]
[1737596879665,12.17133947,253.09,253.06,312.0]
[1737596882472,12.17133947,253.11,253.03,30.0]
[1737596882776,12.17133947,253.11,253.04,3.9519]
[1737596883068,12.23433947,253.15,253.07,42.17133947]
[1737596883272,12.17133947,253.11,253.04,33.9519]
[1737596883456,12.17133947,253.09,253.04,33.9519]
[1737596883651,12.23433947,253.15,253.11,30.0]
[1737596883858,0.063,253.15,253.11,30.0]
[1737596884459,0.063,253.15,253.13,3.9505]
[1737596885072,12.23433947,253.15,253.11,3.9507]
[1737596885456,12.23433947,253.15,253.11,315.9507]
[1737596886257,12.23433947,253.15,253.11,33.9507]
[1737596886667,12.23433947,253.15,253.09,3.951]
[1737596886868,12.23433947,253.15,253.08,33.9512]
[1737596887372,12.17133947,253.13,253.08,30.0]
[1737596888877,12.23433947,253.15,253.08,30.0]
[1737596889675,12.23433947,253.15,253.08,33.9512]
[1737596889868,12.23433947,253.15,253.08,34.5437584]
[1737596890072,0.063,253.15,253.08,34.5437584]
[1737596890276,0.063,253.15,253.1,12.17133947]
[1737596890469,0.063,253.15,253.11,30.0]
[1737596891277,0.063,253.15,253.12,3.9506]
[1737596891582,0.063,253.15,253.14,30.0]
[1737596892276,0.063,253.15,253.14,342.0]
[1737596893374,0.063,253.15,253.14,358.12163947]
[1737596894280,0.063,253.16,253.14,381.89852347]
[1737596894468,0.063,253.16,253.15,0.59226757]
[1737596894867,0.063,253.16,253.15,24.36915157]
[1737596895071,0.0001,253.16,253.15,2.13746757]
[1737596895790,0.0001,253.16,253.15,1.5452]
[1737596895967,0.0001,253.16,253.15,20.8852]
[1737596896169,0.0001,253.16,253.15,19.34]
[1737596896866,0.0001,253.16,253.15,19.93236495]
[1737596897065,0.0001,253.16,253.15,43.70924895]
[1737596897499,0.0001,253.16,253.15,355.70924895]
[1737596897695,0.0001,253.16,253.15,355.116884]
[1737596897900,12.17133947,253.3,253.23,30.0]
[1737596898200,0.063,253.32,253.27,42.17133947]
[1737596898405,0.063,253.32,253.27,12.17133947]
[1737596898566,0.063,253.32,253.27,30.0]
[1737596898767,0.063,253.32,253.31,42.17133947]
[1737596899100,0.063,253.32,253.29,12.17133947]
[1737596899405,0.063,253.32,253.27,30.0]
[1737596899601,0.063,253.32,253.27,46.11963947]
[1737596899807,0.063,253.32,253.31,12.17133947]
[1737596900471,0.063,253.41,253.39,30.0]
[1737596900668,0.063,253.41,253.4,12.76312988]
[1737596901190,0.063,253.41,253.4,352.48631388]
[1737596901378,0.063,253.42,253.4,328.11763947]
[1737596901583,0.063,253.42,253.4,16.11763947]
[1737596901884,0.063,253.42,253.4,12.17133947]
[1737596902981,0.063,253.42,253.39,30.0]
[1737596903185,0.063,253.42,253.35,12.17133947]
[1737596903373,12.17133947,253.39,253.32,5.48]
[1737596904169,12.17133947,253.37,253.32,5.48]
[1737596904564,12.17133947,253.37,253.28,30.0]
[1737596904771,12.17133947,253.35,253.25,12.17133947]
[1737596905181,16.11853947,253.35,253.25,12.17133947]
[1737596905681,19.44299549,253.34,253.24,49.44299549]
[1737596906289,23.38979549,253.37,253.28,49.44299549]
[1737596906879,19.44299549,253.33,253.24,19.44299549]
[1737596907084,3.9475,253.32,253.22,19.44299549]
[1737596907284,19.44299549,253.31,253.22,19.44299549]
[1737596909081,23.39099549,253.29,253.2,19.44299549]
[1737596909387,1.526,253.31,253.24,49.44299549]
[1737596909592,25.93559549,253.33,253.24,49.44299549]
[1737596910091,19.44299549,253.35,253.27,30.0]
[1737596910806,20.96899549,253.37,253.27,30.0]
[1737596911169,19.44299549,253.35,253.27,30.0]
[1737596911376,19.44299549,253.33,253.24,49.44299549]
[1737596911676,19.44299549,253.33,253.24,53.39169549]
[1737596913482,19.44299549,253.37,253.3,30.0]
[1737596914998,19.44299549,253.37,253.3,33.9478]
[1737596915593,19.44299549,253.37,253.32,312.0]
[1737596916197,19.44299549,253.37,253.3,33.9478]
[1737596917799,19.50599549,253.37,253.3,33.9478]
[1737596917991,19.44299549,253.35,253.26,19.44299549]
[1737596918198,19.44299549,253.35,253.27,30.0]
[1737596918502,19.44299549,253.33,253.24,23.39169549]
[1737596919286,19.44299549,253.35,253.27,3.9483]
[1737596919487,19.50599549,253.37,253.3,30.0]
[1737596919713,0.063,253.37,253.3,49.44299549]
[1737596920403,0.063,253.37,253.3,19.44299549]
[1737596920589,19.50599549,253.37,253.29,30.0]
[1737596920794,0.063,253.37,253.32,30.0]
[1737596921604,0.063,253.37,253.33,3.9474]
[1737596921795,19.44299549,253.35,253.26,19.44299549]
[1737596922190,19.44299549,253.33,253.24,23.39159549]
[1737596922395,19.44299549,253.33,253.25,30.0]
[1737596923194,19.44299549,253.33,253.26,3.9485]
[1737596923709,19.44299549,253.35,253.28,30.0]
[1737596925207,19.44299549,253.35,253.22,15.4324]
[1737596925208,19.44299549,253.33,253.24,19.44299549]
[1737596925400,3.9471,253.35,253.21,3.9492]
[1737596925401,19.44299549,253.29,253.21,3.9492]
[1737596925591,19.44299549,253.29,253.22,30.0]
[1737596925794,19.44299549,253.31,253.22,49.44299549]
[1737596926612,19.44299549,253.31,253.22,365.39199549]
[1737596926993,6.1004,253.32,253.24,19.44299549]
[1737596928013,6.1004,253.32,253.24,23.39169549]
[1737596928394,0.063,253.37,253.24,23.39169549]
[1737596928395,19.44299549,253.35,253.29,30.0]
[1737596928705,0.063,253.37,253.29,49.44299549]
[1737596928887,0.063,253.37,253.34,30.0]
[1737596929092,0.063,253.37,253.31,49.44299549]
[1737596930025,0.063,253.37,253.31,30.0]
[1737596930194,19.44299549,253.36,253.28,3.948]
[1737596930512,19.44299549,253.36,253.27,23.39129549]
[1737596930687,19.44299549,253.36,253.29,30.0]
[1737596931512,19.44299549,253.36,253.29,342.0]
[1737596931718,12.21132824,253.37,253.29,342.0]
[1737596931900,12.21132824,253.37,253.29,345.9479]
[1737596932326,12.21132824,253.37,253.29,33.9479]
[1737596932626,16.15822824,253.37,253.29,30.0]
[1737596932814,12.21132824,253.37,253.29,33.9479]
[1737596933002,3.9469,253.36,253.26,12.14832824]
[1737596933203,12.14832824,253.35,253.26,12.14832824]
[1737596933711,12.14832824,253.35,253.28,30.0]
[1737596933915,12.21132824,253.37,253.31,30.0]
[1737596934219,12.21132824,253.37,253.28,46.09642824]
[1737596934422,12.14832824,253.32,253.28,3.9481]
[1737596934603,12.14832824,253.32,253.24,3.9787]
[1737596934794,12.14832824,253.32,253.24,33.9787]
[1737596935120,12.14832824,253.36,253.27,30.0]
[1737596935416,12.14832824,253.36,253.27,342.0]
[1737596935798,0.063,253.37,253.3,30.0]
[1737596935996,0.063,253.37,253.3,33.9478]
[1737596938028,0.063,253.37,253.35,30.0]
[1737596938317,0.063,253.37,253.36,12.74024419]
[1737596938814,0.063,253.37,253.36,324.74024419]
[1737596939119,0.063,253.37,253.36,324.14832824]
[1737596939499,0.063,253.37,253.36,328.09522824]
[1737596939915,0.063,253.37,253.36,16.09522824]
[1737596942117,0.063,253.41,253.4,30.0]
[1737596942298,0.063,253.41,253.4,42.14832824]
[1737596942620,0.063,253.44,253.43,53.776884]
[1737596942804,0.063,253.44,253.43,66.51681014]
[1737596943121,0.063,253.44,253.43,378.51681014]
[1737596943317,0.063,253.44,253.43,354.14832824]
[1737596943530,0.063,253.44,253.43,312.0]
[1737596943704,0.063,253.44,253.43,342.0]
[1737596944222,0.063,253.44,253.43,354.14832824]
[1737596946214,0.063,253.44,253.43,342.0]
[1737596946916,0.063,253.44,253.43,354.14832824]
[1737596947111,0.063,253.44,253.43,377.92521224]
[1737596947312,0.063,253.58,253.43,377.92521224]
[1737596947313,0.063,253.58,253.49,30.0]
[1737596947625,0.063,253.58,253.56,30.0]
[1737596948718,0.063,253.58,253.57,12.14832824]
[1737596948926,0.063,253.58,253.57,16.68328064]
[1737596949135,0.063,253.58,253.53,12.14832824]
[1737596949319,12.21132824,253.58,253.52,30.0]
[1737596949633,12.21132824,253.58,253.55,30.0]
[1737596950000,12.14832824,253.56,253.5,33.9447]
[1737596950414,12.14832824,253.56,253.53,342.0]
[1737596951136,12.21132824,253.58,253.56,30.0]
[1737596951418,0.063,253.58,253.56,30.0]
[1737596951625,0.063,253.58,253.57,0.59139113]
[1737596952029,12.21132824,253.58,253.53,30.0]
[1737596952332,12.21132824,253.58,253.53,33.9442]
[1737596952834,0.063,253.58,253.53,33.9442]
[1737596953005,0.063,253.58,253.57,30.0]
[1737596954227,0.063,253.58,253.57,342.0]
[1737596955021,0.063,253.58,253.57,365.776884]
[1737596956007,0.063,253.58,253.57,342.0]
[1737596958107,12.21132824,253.58,253.57,30.0]
[1737596959324,0.063,253.58,253.57,30.0]
[1737596959930,12.21132824,253.58,253.57,30.0]
[1737596960113,12.21132824,253.58,253.52,35.56]
[1737596960429,12.14832824,253.55,253.52,30.0]
[1737596961008,12.14832824,253.55,253.52,345.9444]
[1737596963422,0.063,253.58,253.55,30.0]
[1737596963825,0.063,253.58,253.56,0.59139893]
[1737596965720,0.063,253.58,253.57,3.9436]
[1737596966424,0.063,253.58,253.57,312.0]
[1737596966619,0.063,253.58,253.55,33.9438]
[1737596969517,0.063,253.58,253.55,30.0]
[1737596969832,0.063,253.58,253.55,345.9439]
[1737596971016,0.063,253.58,253.56,24.36827853]
[1737596971340,0.063,253.58,253.57,35.92521224]
[1737596971517,0.063,253.58,253.57,39.86881224]
[1737596971717,0.063,253.58,253.55,30.0]
[1737596971917,12.14832824,253.57,253.53,3.9442]
[1737596972146,12.14832824,253.57,253.55,30.0]
[1737596972352,0.063,253.58,253.55,30.0]
[1737596972515,12.14832824,253.57,253.52,30.0]
[1737596973224,12.14832824,253.57,253.49,5.34]
[1737596973225,12.14832824,253.53,253.45,30.0]
[1737596973431,12.14832824,253.5,253.45,30.0]
[1737596973741,12.14832824,253.48,253.45,30.0]
[1737596974121,12.14832824,253.48,253.45,342.0]
[1737596975542,12.14832824,253.48,253.45,345.9455]
[1737596976628,12.14832824,253.52,253.48,30.0]
[1737596976828,12.14832824,253.5,253.48,30.0]
[1737596977228,12.14832824,253.5,253.45,312.0]
[1737596977432,12.14832824,253.47,253.45,312.0]
[1737596977732,4.0065,253.58,253.45,345.9454]
[1737596977733,12.14832824,253.49,253.45,345.9454]
[1737596977936,12.14832824,253.49,253.48,30.0]
[1737596978241,12.14832824,253.49,253.45,3.9454]
[1737596978444,12.14832824,253.49,253.44,30.03]
[1737596978445,12.14832824,253.47,253.44,0.03]
[1737596979329,12.14832824,253.45,253.44,0.03]
[1737596980552,5.5517,253.44,253.4,0.03]
[1737596980752,24.29665648,253.41,253.3,3.9477]
[1737596980921,12.14832824,253.31,253.27,342.0]
[1737596981124,12.14832824,253.37,253.3,30.0]
[1737596981341,12.14832824,253.31,253.24,3.9787]
[1737596981529,12.14832824,253.28,253.24,3.9787]
[1737596981737,12.14832824,253.25,253.24,0.03]
[1737596982337,12.14832824,253.25,253.18,0.03]
[1737596982338,24.29665648,253.25,253.18,0.03]
[1737596982627,12.14832824,253.19,253.18,0.03]
[1737596982949,12.14832824,253.19,253.15,0.03]
[1737596983123,12.14832824,253.19,253.14,0.03]
[1737596983124,12.14832824,253.16,253.14,0.03]
[1737596983324,12.14832824,253.16,253.06,30.03]
[1737596983657,3.9501,253.16,253.06,30.03]
[1737596983834,19.4801963,253.07,253.06,30.03]
[1737596984234,19.4801963,253.07,253.06,342.03]
[1737596984435,19.4801963,253.09,253.06,342.03]
[1737596984637,19.4801963,253.11,253.06,345.9815]
[1737596984952,19.4801963,253.15,253.12,30.0]
[1737596985146,19.4801963,253.19,253.15,30.0]
[1737596985326,19.4801963,253.21,253.18,30.0]
[1737596985844,19.4801963,253.21,253.18,33.9496]
[1737596986029,19.4801963,253.23,253.22,30.0]
[1737596986348,19.4801963,253.23,253.21,30.0]
[1737596986541,19.4801963,253.22,253.21,30.0]
[1737596986751,19.4801963,253.22,253.18,30.0]
[1737596986935,19.4801963,253.19,253.18,30.0]
[1737596987458,19.4801963,253.19,253.13,30.0]
[1737596987755,19.4801963,253.16,253.15,33.9502]
[1737596987924,19.4801963,253.16,253.15,30.0]
[1737596989526,19.4801963,253.16,253.13,0.03]
[1737596989730,19.4801963,253.14,253.13,0.03]
[1737596990139,19.4801963,253.16,253.15,30.0]
[1737596990455,19.4801963,253.21,253.2,30.0]
[1737596990747,19.4801963,253.21,253.2,342.0]
[1737596990933,6.2721,253.36,253.27,30.0]
[1737596991552,3.9471,253.35,253.24,30.0]
[1737596991856,3.9471,253.35,253.21,30.0]
[1737596992040,19.4801963,253.22,253.21,30.59216198]
[1737596992244,19.4801963,253.22,253.21,30.0]
[1737596992443,19.4801963,253.22,253.18,3.9497]
[1737596992652,19.4801963,253.19,253.17,30.0]
[1737596993039,19.4801963,253.19,253.17,33.9498]
[1737596993547,19.4801963,253.21,253.2,30.0]
[1737596994242,19.4801963,253.21,253.2,342.0]
[1737596996039,19.4801963,253.21,253.2,312.0]
[1737596996246,19.4801963,253.21,253.2,342.0]
[1737596996838,19.4801963,253.21,253.17,30.0]
[1737596997048,19.4801963,253.18,253.13,30.03]
[1737596997368,19.4801963,253.14,253.13,0.03]
[1737596998574,19.4801963,253.14,253.13,30.03]
[1737596999749,19.4801963,253.14,253.13,312.03]
[1737596999954,19.4801963,253.14,253.13,0.03]
[1737597002981,19.4801963,253.14,253.13,312.03]